fUSD/lending_fUSD_20240109
["ID","MTS","AMOUNT","RATE_DAILY","PERIOD"]
[310876355,1704758538122,238.33,0.00020428,2]
[310876356,1704758595479,2000.0,0.0002216,2]
[310876357,1704758739556,185.36,0.00022292,2]
[310876358,1704758823758,1000.0,0.0002207,2]
[310876359,1704758964840,157.23,0.00022239,2]
[310876370,1704758993383,250.0,0.00021943,2]
[310876375,1704758993904,155.28,0.0002207,2]
[310876376,1704759025164,500.0,0.00022,2]
[310876378,1704759032182,-288.34262207,0.00022553,2]
[310876379,1704759032194,-161.90737793,0.00022554,2]
[310876380,1704759032242,-838.09262207,0.00022554,2]
[310876381,1704759032252,-117.26511997,0.00022555,2]
[310876382,1704759032266,-32.73488003,0.00022555,2]
[310876383,1704759032276,-1127.26,0.00022563,2]
[310876384,1704759032286,-238.33,0.00022692,2]
[310876385,1704759032295,-483.68814411,0.000227,2]
[310876386,1704759032305,-150.0,0.00022899,2]
[310876387,1704759032315,-35.03697586,0.000229,2]
[310876388,1704759032328,-979.38,0.000229,2]
[310876389,1704759032341,-1485.58302414,0.000229,2]
[310876390,1704759032350,-178.07897586,0.000229,2]
[310876391,1704759032363,-321.90484521,0.000229,2]
[310876392,1704759032375,-667.04664711,0.000229,2]
[310876393,1704759032400,-300.0,0.000229,2]
[310876394,1704759032413,-405.83924416,0.000229,2]
[310876395,1704759032437,-299.42368159,0.000229,2]
[310876396,1704759032451,-300.0,0.000229,2]
[310876397,1704759032464,-9164.83310607,0.000229,2]
[310876398,1704759032474,-2263.20532639,0.000229,2]
[310876399,1704759032484,-1659.911,0.000229,2]
[310876400,1704759032493,-298.59704734,0.000229,2]
[310876401,1704759032503,-291.56786829,0.000229,2]
[310876402,1704759032513,-161.78709095,0.000229,2]
[310876403,1704759032523,-522.38,0.000229,2]
[310876404,1704759032532,-150.99,0.000229,2]
[310876405,1704759032541,-1276.09,0.000229,2]
[310876406,1704759032552,-4250.06331921,0.00022903,2]
[310876407,1704759032561,-291.56786827,0.00022903,2]
[310876408,1704759032571,-4250.06331921,0.00022906,2]
[310876409,1704759032581,-291.56786827,0.00022906,2]
[310876410,1704759032591,-2263.20532636,0.00022912,2]
[310876411,1704759032601,-2263.20532636,0.00022924,2]
[310876414,1704759032611,-2263.20532636,0.00022935,2]
[310876417,1704759032621,-2263.20532636,0.00022947,2]
[310876419,1704759032633,-2263.20532636,0.00022959,2]
[310876421,1704759032643,-2263.20532636,0.00022971,2]
[310876423,1704759032654,-2263.20532636,0.00022983,2]
[310876424,1704759032663,-2118.56405589,0.00022989,2]
[310876425,1704759032673,-2263.20532636,0.00022995,2]
[310876426,1704759032683,-300.41501205,0.00022998,2]
[310876427,1704759032692,-155.0,0.00022998,2]
[310876428,1704759032703,-624.66515753,0.00022998,2]
[310876429,1704759032713,-5455.45407365,0.00022999,2]
[310876430,1704759032734,-350.0,0.00022999,2]
[310876431,1704759032747,-3214.45266168,0.00022999,2]
[310876432,1704759032759,-14934.63440547,0.00022999,2]
[310876433,1704759032771,-2550.0,0.00022999,2]
[310876434,1704759032783,-431.71184903,0.00022999,2]
[310876435,1704759032795,-464.9862939,0.00022999,2]
[310876436,1704759032894,-3918.03114283,0.00022999,2]
[310876443,1704759039862,-18641.72622503,0.00022999,2]
[310876444,1704759039873,-928.57802693,0.00022999,2]
[310876445,1704759039884,-139363.09384358,0.00023,2]
[310876446,1704759039931,-255649.60523757,0.00023,2]
[310876447,1704759039943,-1676470.42811399,0.00023,2]
[310876448,1704759039958,-49960.99665159,0.00023,2]
[310876455,1704759040046,-1490.04528008,0.00023,2]
[310876456,1704759040060,-300.0,0.00023,2]
[310876457,1704759040074,-339.12938661,0.00023,2]
[310876458,1704759040107,-1942.12171146,0.00023,2]
[310876459,1704759040229,-14822.39214895,0.00023,2]
[310876460,1704759040243,-1285.22235789,0.00023,2]
[310876461,1704759040256,-951.26132272,0.00023,2]
[310876478,1704759040853,-6119.44966833,0.00023,2]
[310876479,1704759040867,-194521.20822984,0.00023,2]
[310876480,1704759040913,-391.48672021,0.00023,2]
[310876481,1704759040940,-40029.68375239,0.00023,2]
[310876482,1704759041525,-20136.77539336,0.00023,2]
[310876483,1704759041586,-1051.95247264,0.00023,2]
[310876494,1704759043364,-607.77138191,0.00023,2]
[310876495,1704759043427,-20982.14999993,0.00023,2]
[310876496,1704759043478,-0.0057471,0.00023,2]
[310876546,1704759048423,-2158208.36771152,0.00023,2]
[310876547,1704759048935,-1005.00551944,0.00023,2]
[310876548,1704759048947,-753.38329834,0.00023,2]
[310876549,1704759048959,-465.15169898,0.00023,2]
[310876550,1704759049588,-1310.29271254,0.00023,2]
[310876551,1704759049600,-37223.94047765,0.00023,2]
[310876552,1704759049611,-3708.58280583,0.00023,2]
[310876553,1704759049627,-3588.70815769,0.00023,2]
[310876554,1704759049667,-2345.35533368,0.00023,2]
[310876555,1704759049698,-6905.76292597,0.00023,2]
[310876556,1704759049725,-512.6399146,0.00023,2]
[310876557,1704759106275,150.0,0.00022,2]
[310876558,1704759230361,398.45291272,0.00022078,2]
[310876559,1704759283679,150.0,0.00022,2]
[310876560,1704759298091,845.11321729,0.00022078,2]
[310876561,1704759301704,3120.33476813,0.00021848,2]
[310876562,1704759320445,384.34662251,0.00022078,2]
[310876563,1704759321559,1216.14794165,0.00021848,2]
[310876594,1704759502558,686.01,0.00022407,2]
[310876608,1704759524682,2000.0,0.00022407,2]
[310876609,1704759534313,318.01504645,0.00021848,2]
[310876613,1704759538134,251.89,0.00020674,2]
[310876614,1704759571871,351.54,0.00022,2]
[310876618,1704759615443,167.4,0.00022237,10]
[310876619,1704759639483,500.0,0.00022,2]
[310876620,1704759667810,161.67,0.00022459,2]
[310876621,1704759683380,150.0,0.00022474,2]
[310876622,1704759699959,800.0,0.00022182,2]
[310876623,1704759758344,160.99529057,0.00022446,2]
[310876624,1704759828926,150.0,0.00022,2]
[310876625,1704759856454,156.98,0.00022398,2]
[310876626,1704759918727,164.62,0.00022053,2]
[310876627,1704759929069,250.0,0.00022231,2]
[310876628,1704759939930,168.62,0.00022083,2]
[310876629,1704759955284,247.0,0.00020253,2]
[310876630,1704759956692,200.0,0.00022231,2]
[310876631,1704759962981,473.41,0.0002212,2]
[310876632,1704759976650,246.64758345,0.000225,2]
[310876633,1704759978389,288.34262207,0.000225,2]
[310876634,1704760025283,155.0,0.000225,2]
[310876635,1704760061272,166.08,0.00022106,2]
[310876638,1704760152631,203.73,0.00022331,2]
[310876645,1704760174104,-412.97503001,0.00022514,2]
[310876676,1704760231418,-587.02496999,0.00022514,2]
[310876677,1704760231429,-6.84435912,0.00022515,2]
[310876678,1704760231440,-671.0976649,0.00022515,2]
[310876679,1704760231452,-1874.10367007,0.00022515,2]
[310876680,1704760231461,-247.0,0.00022517,2]
[310876681,1704760231470,-394.03061217,0.00022546,2]
[310876682,1704760231483,-765.29010049,0.00022546,2]
[310876683,1704760231494,-83.98843118,0.00022546,2]
[310876684,1704760231503,-682.09086375,0.00022548,2]
[310876685,1704760231536,-120.18431639,0.00022548,2]
[310876686,1704760231546,-150.0,0.00022548,2]
[310876687,1704760231555,-156.98,0.00022689,2]
[310876688,1704760231565,-326.72373977,0.00022768,2]
[310876689,1704760231574,-300.0,0.00022769,2]
[310876690,1704760231583,-150.0,0.00022769,2]
[310876691,1704760231593,-38012.91953775,0.0002277,2]
[310876692,1704760231603,-200.0,0.00022851,2]
[310876693,1704760231612,-499.99,0.00022851,2]
[310876694,1704760231621,-851.73,0.00022851,2]
[310876695,1704760231631,-999.99,0.00022851,2]
[310876696,1704760231640,-237.24,0.00022851,2]
[310876697,1704760231649,-150.99,0.00022851,2]
[310876698,1704760231659,-151.9747,0.000229,2]
[310876699,1704760231668,-1000.0,0.000229,2]
[310876700,1704760231678,-1269.1714,0.000229,2]
[310876701,1704760231690,-850.4073,0.000229,2]
[310876702,1704760231699,-2381.3328,0.000229,2]
[310876703,1704760231708,-2500.0,0.000229,2]
[310876704,1704760231718,-375.4988,0.000229,2]
[310876706,1704760231727,-869.63080148,0.000229,2]
[310876708,1704760231736,-160.99529057,0.000229,2]
[310876710,1704760231745,-188.01848645,0.000229,2]
[310876712,1704760231753,-1531.64083951,0.000229,2]
[310876714,1704760231763,-156.98,0.00022981,2]
[310876716,1704760231772,-370.05113049,0.00022986,2]
[310876718,1704760231781,-155.38981305,0.0002299,2]
[310876720,1704760231790,-155.38981305,0.0002299,2]
[310876722,1704760231799,-155.38981305,0.0002299,2]
[310876724,1704760231808,-269.0439706,0.00022998,2]
[310876726,1704760231817,-307.49072606,0.00022998,2]
[310876728,1704760231826,-2703.9232041,0.00022998,2]
[310876730,1704760231835,-383.84892023,0.00022998,2]
[310876732,1704760231846,-408.08870531,0.00022998,2]
[310876734,1704760231855,-242.64035737,0.00022998,2]
[310876736,1704760231864,-162.16059053,0.00022998,2]
[310876738,1704760231873,-11268.18394715,0.00022998,2]
[310876740,1704760231886,-5798.73291477,0.00022998,2]
[310876742,1704760231895,-1446.91385758,0.00022998,2]
[310876743,1704760231905,-288.19484729,0.00022998,2]
[310876744,1704760231914,-2265.58816152,0.00022999,2]
[310876745,1704760231923,-3251.47869738,0.00023,2]
[310876746,1704760231935,-35695.71965433,0.00023,2]
[310876747,1704760231957,-367.83886816,0.00023,2]
[310876748,1704760231969,-1205.02646746,0.00023,2]
[310876749,1704760231981,-1250.0,0.00023,2]
[310876750,1704760231992,-13331.39526053,0.00023,2]
[310876752,1704760232033,-1338.48991037,0.00023,2]
[310876754,1704760232044,-1511277.18936686,0.00023,2]
[310876756,1704760232055,-288.35999134,0.00023,2]
[310876768,1704760237503,-194.00533793,0.000229,2]
[310876769,1704760237512,-591.44380428,0.00023,2]
[310876770,1704760237522,-6420.88416689,0.00023,2]
[310876771,1704760237579,-2037.53492324,0.00023,2]
[310876772,1704760237648,-11644.77779255,0.00023,2]
[310876773,1704760237659,-942.7987189,0.00023,2]
[310876774,1704760237707,-355.74370788,0.00023,2]
[310876775,1704760237719,-12500.0003,0.00023,2]
[310876776,1704760237732,-60763.03009727,0.00023,2]
[310876777,1704760237771,-348709.91181913,0.00023,2]
[310876778,1704760237781,-1583410.12153243,0.00023,2]
[310876779,1704760237792,-49960.99665159,0.00023,2]
[310876780,1704760237829,-635.96349285,0.00023,2]
[310876781,1704760237841,-422226.0,0.00023,2]
[310876782,1704760237853,-594.46482529,0.00023,2]
[310876783,1704760237864,-342.79972744,0.00023,2]
[310876784,1704760237888,-1315.35,0.00023,2]
[310877023,1704760240268,-320.7376266,0.00023,2]
[310877024,1704760240279,-13706.1313041,0.00023,2]
[310877025,1704760240299,-507.76928861,0.00023,2]
[310877026,1704760240310,-413.00489576,0.00023,2]
[310877027,1704760240321,-312.14320097,0.00023,2]
[310877029,1704760240352,-31344.3663729,0.00023,2]
[310877031,1704760240363,-52031.15821753,0.00023,2]
[310877033,1704760240374,-541.05532265,0.00023,2]
[310877035,1704760240385,-704.41483031,0.00023,2]
[310877037,1704760240397,-3526.78802572,0.00023,2]
[310877039,1704760240414,-1467.9667264,0.00023,2]
[310877040,1704760240636,-320.24716079,0.00023,2]
[310877041,1704760240696,-3607.05911941,0.00023,2]
[310877042,1704760240727,-312.52609998,0.00023,2]
[310877043,1704760240740,-404.64772298,0.00023,2]
[310877084,1704760242468,-467.19110693,0.00023,2]
[310877086,1704760242520,-387.5860001,0.00023,2]
[310877087,1704760242531,-1935.75094942,0.00023,2]
[310877088,1704760242578,-3103.95960361,0.00023,2]
[310877089,1704760242589,-13178.74415909,0.00023,2]
[310877090,1704760242600,-2012.40639993,0.00023,2]
[310877091,1704760242612,-380.05733909,0.00023,2]
[310877092,1704760242643,-293.33957425,0.00023,2]
[310877093,1704760242654,-735.6,0.00023,2]
[310877094,1704760242665,-2172.2,0.00023,2]
[310877095,1704760242696,-21028.4684212,0.00023,2]
[310877096,1704760242707,-257.26932044,0.00023,2]
[310877097,1704760242718,-696.05985471,0.00023,2]
[310877098,1704760242754,-3181.02768201,0.00023,2]
[310877099,1704760242766,-904.30807895,0.00023,2]
[310877100,1704760242777,-432.706542,0.00023,2]
[310877128,1704760245664,-250.19404164,0.00022999,2]
[310877130,1704760245673,-1000.0,0.00022999,2]
[310877132,1704760245683,-13806.6424163,0.00023,2]
[310877134,1704760245694,-1992.01801662,0.00023,2]
[310877137,1704760245706,-678.53473002,0.00023,2]
[310877140,1704760245726,-71072.13563611,0.00023,2]
[310877147,1704760245789,-7465.0,0.00023,2]
[310877149,1704760245801,-1090.5432368,0.00023,2]
[310877180,1704760248465,350.0,0.00023288,4]
[310877181,1704760248496,372.1745903,0.00023288,4]
[310877182,1704760248525,211.77833349,0.00023288,4]
[310877185,1704760256698,360.0,0.00022134,2]
[310877195,1704760310196,151.06375353,0.00022,2]
[310877196,1704760392441,282.01678762,0.00022,2]
[310877197,1704760399616,158.11678778,0.00022,2]
[310877198,1704760402890,882.89324695,0.00022,2]
[310877199,1704760407154,17062.52834181,0.0002189,2]
[310877200,1704760407723,155.0,0.00022,2]
[310877201,1704760430196,150.0,0.00022485,2]
[310877202,1704760492229,237.7,0.00020213,2]
[310877203,1704760492645,237.7,0.00022477,2]
[310877204,1704760617408,1705.71895053,0.00022499,2]
[310877205,1704760621863,1000.0,0.00022499,2]
[310877206,1704760627915,155.0,0.00022499,2]
[310877207,1704760631400,1886.4927337,0.00022499,2]
[310877208,1704760688772,712.0,0.00022138,2]
[310877209,1704760745947,2186.3,0.00035,60]
[310877210,1704760778338,155.09,0.00021985,2]
[310877211,1704760785460,12678.08,0.00035,60]
[310877212,1704760804689,2000.0,0.00022138,2]
[310877213,1704760812361,156.53,0.00022193,2]
[310877214,1704760814608,250.0,0.00022028,2]
[310877215,1704760843445,174.9,0.00022136,2]
[310877216,1704760854955,185.36,0.00022359,2]
[310877217,1704760922661,150.0,0.000225,2]
[310877218,1704760930943,221.56,0.0001999,2]
[310877219,1704760931155,221.56,0.00022254,2]
[310877220,1704760946630,473.41096221,0.00022499,2]
[310877221,1704760963767,281.39937774,0.00022479,2]
[310877222,1704760964858,473.41096221,0.00022499,2]
[310877223,1704760980754,473.41096221,0.00022499,2]
[310877224,1704760985704,4617.12763814,0.00022499,2]
[310877225,1704761065149,500.0,0.00021887,2]
[310877226,1704761084871,187.59958516,0.00022479,2]
[310877227,1704761101552,206.0,0.000225,2]
[310877228,1704761126532,430.4,0.00021887,2]
[310877229,1704761161057,231.87,0.00021887,2]
[310877230,1704761228676,165.16,0.00022072,2]
[310877231,1704761228906,165.16,0.00022456,2]
[310877232,1704761286169,9323.79,0.00021918,2]
[310877233,1704761295029,185.36,0.00022127,2]
[310877234,1704761336990,156.81774787,0.00022402,2]
[310877235,1704761337431,203.18,0.00021916,2]
[310877240,1704761392429,250.0,0.0002189,2]
[310877241,1704761405954,199.4,0.00019972,2]
[310877242,1704761406437,199.4,0.00022236,2]
[310877252,1704761431578,-1000.0,0.000225,2]
[310877255,1704761431589,-17677.90144475,0.00022501,2]
[310877266,1704761431697,-250.19404164,0.00022501,2]
[310877267,1704761431708,-272.72996509,0.00022501,2]
[310877268,1704761431760,-857.93479431,0.00022501,2]
[310877269,1704761431775,-14631.70239029,0.00022501,2]
[310877270,1704761431784,-12950.82994929,0.00022502,2]
[310877271,1704761431794,-441.34450602,0.00022502,2]
[310877272,1704761431803,-198.1994,0.00022502,2]
[310877273,1704761431813,-216.09398651,0.00022503,2]
[310877274,1704761431822,-1838.61649573,0.00022503,2]
[310877275,1704761431831,-16368.44474607,0.00022504,2]
[310877276,1704761431843,-48316.02437238,0.00022504,2]
[310877277,1704761431853,-156.81774785,0.00022527,2]
[310877278,1704761431862,-925.17109472,0.00022651,2]
[310877279,1704761431871,-156.81774785,0.00022652,2]
[310877280,1704761431881,-11459.8724264,0.00022669,2]
[310877281,1704761431890,-5129.45005835,0.000227,2]
[310877282,1704761431915,-3657.01460855,0.000227,2]
[310877283,1704761431927,-6159.2236331,0.000227,2]
[310877284,1704761431937,-283.49,0.000227,2]
[310877285,1704761431946,-156.81774785,0.00022776,2]
[310877286,1704761431955,-155.57154235,0.00022783,2]
[310877287,1704761431964,-194.6973,0.000228,2]
[310877289,1704761431973,-196.8291,0.000228,2]
[310877291,1704761431984,-6317.0602,0.000228,2]
[310877293,1704761431993,-807.7472,0.000228,2]
[310877295,1704761432002,-499.99,0.000228,2]
[310877296,1704761432011,-2500.0,0.000228,2]
[310877297,1704761432020,-6035.40172759,0.000228,2]
[310877298,1704761432028,-352.44369555,0.000228,2]
[310877299,1704761432037,-165.16,0.00022839,2]
[310877300,1704761432047,-203.18,0.00022894,2]
[310877301,1704761432056,-2282.83254305,0.00022898,2]
[310877302,1704761432065,-7066.28607176,0.00022898,2]
[310877303,1704761432074,-155.21311001,0.00022898,2]
[310877304,1704761432084,-544.0632077,0.00022898,2]
[310877305,1704761432093,-541.17477191,0.00022898,2]
[310877306,1704761432102,-1946.47830428,0.00022898,2]
[310877307,1704761432111,-579.40411831,0.00022898,2]
[310877308,1704761432120,-4002.11843427,0.00022898,2]
[310877309,1704761432129,-158.961258,0.00022898,2]
[310877310,1704761432139,-516.38195393,0.00022898,2]
[310877311,1704761432148,-203.97272812,0.00022898,2]
[310877312,1704761432157,-190.32953842,0.00022898,2]
[310877313,1704761432166,-437.68874587,0.00022898,2]
[310877314,1704761432176,-200.86107589,0.00022898,2]
[310877315,1704761432185,-302.0096739,0.00022898,2]
[310877316,1704761432195,-320.56512735,0.00022898,2]
[310877317,1704761432204,-472.27624596,0.00022898,2]
[310877318,1704761432213,-3469.74785166,0.00022899,2]
[310877319,1704761432223,-135940.26517069,0.000229,2]
[310877320,1704761432244,-929.56,0.000229,2]
[310877321,1704761432255,-14010.0,0.000229,2]
[310877322,1704761432266,-1343.1021975,0.000229,2]
[310877323,1704761432281,-708.59116417,0.000229,2]
[310877336,1704761437753,-469.65940609,0.000229,2]
[310877337,1704761437769,-91598.82206155,0.000229,2]
[310877338,1704761437778,-1000.0,0.000229,2]
[310877339,1704761437787,-1293.3324,0.000229,2]
[310877340,1704761437797,-156.81774785,0.00022901,2]
[310877341,1704761437807,-150.0,0.00022915,2]
[310877342,1704761437816,-150.0,0.00022916,2]
[310877343,1704761437826,-150.0,0.00022918,2]
[310877344,1704761437836,-150.0,0.00022922,2]
[310877345,1704761437845,-300.0,0.00022924,2]
[310877346,1704761437855,-150.0,0.00022925,2]
[310877347,1704761437865,-150.0,0.00022927,2]
[310877348,1704761437874,-150.0,0.00022927,2]
[310877349,1704761437883,-150.0,0.00022929,2]
[310877350,1704761437892,-150.0,0.00022929,2]
[310877351,1704761437902,-1119.0003408,0.00022933,2]
[310877352,1704761437911,-150.0,0.00022941,2]
[310877353,1704761437920,-150.0,0.00022946,2]
[310877354,1704761437930,-150.0,0.0002295,2]
[310877355,1704761437939,-150.0,0.00022952,2]
[310877356,1704761437949,-150.0,0.00022954,2]
[310877357,1704761437958,-150.0,0.00022956,2]
[310877358,1704761437967,-150.0,0.00022963,2]
[310877359,1704761437976,-150.0,0.00022964,2]
[310877360,1704761437988,-150.0,0.00022965,2]
[310877361,1704761437996,-1500.0,0.00022971,2]
[310877362,1704761438005,-150.0,0.00022971,2]
[310877363,1704761438014,-150.0,0.00022972,2]
[310877364,1704761438024,-150.0,0.00022978,2]
[310877365,1704761438032,-150.0,0.00022978,2]
[310877366,1704761438042,-150.0,0.0002298,2]
[310877367,1704761438051,-150.0,0.00022981,2]
[310877368,1704761438061,-150.0,0.00022982,2]
[310877369,1704761438070,-150.0,0.00022984,2]
[310877370,1704761438079,-150.0,0.00022984,2]
[310877371,1704761438088,-150.0,0.00022984,2]
[310877372,1704761438097,-150.0,0.00022986,2]
[310877373,1704761438106,-150.0,0.00022988,2]
[310877374,1704761438115,-150.0,0.0002299,2]
[310877375,1704761438124,-178.30777722,0.0002299,2]
[310877376,1704761438134,-150.0,0.00022991,2]
[310877377,1704761438143,-150.0,0.00022992,2]
[310877378,1704761438152,-241.52141626,0.00022998,2]
[310877379,1704761438162,-2927.51927162,0.00022998,2]
[310877380,1704761438171,-155.0,0.00022999,2]
[310877381,1704761438181,-1198.0595198,0.00022999,2]
[310877382,1704761438189,-218.98325398,0.00022999,2]
[310877383,1704761438199,-300.0,0.00022999,2]
[310877384,1704761438208,-1000.0,0.00022999,2]
[310877385,1704761438218,-472896.30052926,0.00023,2]
[310877387,1704761438227,-1395958.66285965,0.00023,2]
[310877389,1704761438241,-49960.99665159,0.00023,2]
[310877391,1704761438253,-40971.52427143,0.00023,2]
[310877393,1704761438264,-14323.86430795,0.00023,2]
[310877396,1704761438276,-5344.7989216,0.00023,2]
[310877398,1704761438287,-21868.98037803,0.00023,2]
[310877400,1704761438299,-678.8525566,0.00023,2]
[310877404,1704761438323,-12282.80695017,0.00023,2]
[310877406,1704761438334,-930.14922,0.00023,2]
[310877409,1704761438359,-34449.81361978,0.00023,2]
[310877412,1704761438370,-73232.37396543,0.00023,2]
[310877415,1704761438390,-21408.8236685,0.00023,2]
[310877436,1704761440181,-8160.62480002,0.00023,2]
[310877438,1704761440193,-9303.75408405,0.00023,2]
[310877441,1704761440206,-4611.99999986,0.00023,2]
[310877448,1704761440269,-599.25623519,0.00023,2]
[310877451,1704761440280,-410.2854,0.00023,2]
[310877452,1704761440291,-679.18829299,0.00023,2]
[310877458,1704761440354,-37538.0,0.00023,2]
[310877493,1704761440941,-2420.05890585,0.00023,2]
[310877494,1704761441009,-930.78593378,0.00023,2]
[310877495,1704761441021,-396.26078023,0.00023,2]
[310877503,1704761442733,-6567.46245154,0.00023,2]
[310877504,1704761442747,-34832.90890594,0.00023,2]
[310877505,1704761442758,-49885.31167672,0.00023,2]
[310877506,1704761442770,-1533.29370938,0.00023,2]
[310877507,1704761442793,-10819.55804625,0.00023,2]
[310877508,1704761442804,-4067.23296645,0.00023,2]
[310877509,1704761442821,-26537.32347325,0.00023,2]
[310877510,1704761442838,-7308.82763718,0.00023,2]
[310877511,1704761442850,-2313.54246721,0.00023,2]
[310877512,1704761442862,-510.38064613,0.00023,2]
[310877513,1704761442873,-4050.01805608,0.00023,2]
[310877514,1704761442890,-2867.67658341,0.00023,2]
[310877515,1704761442911,-2005.40600007,0.00023,2]
[310877516,1704761442922,-2202.10453665,0.00023,2]
[310877517,1704761442934,-1041.18611019,0.00023,2]
[310877518,1704761442945,-4970.72896488,0.00023,2]
[310877519,1704761442957,-30981.57952675,0.00023,2]
[310877520,1704761442984,-0.00518897,0.00023,2]
[310877548,1704761445758,-193.32810436,0.00022901,2]
[310877550,1704761445768,-9819.02982836,0.00023,2]
[310877552,1704761445780,-3622.80694664,0.00023,2]
[310877585,1704761446394,-599.19896005,0.00023,2]
[310877586,1704761446406,-313.35335762,0.00023,2]
[310877587,1704761446418,-4800.0000001,0.00023,2]
[310877588,1704761446429,-29169.26604233,0.00023,2]
[310877589,1704761446440,-11623.75,0.00023,2]
[310877590,1704761446464,-2334.77673008,0.00023,2]
[310877591,1704761446476,-2774.3139624,0.00023,2]
[310877592,1704761446496,-284.22493626,0.00023,2]
[310877593,1704761446508,-1150.625,0.00023,2]
[310877594,1704761480087,418.31655925,0.00022078,2]
[310877596,1704761501292,692.5958,0.00022404,2]
[310877601,1704761551264,7409.21190249,0.00022404,2]
[310877602,1704761552222,498.37671322,0.00021732,2]
[310877603,1704761552294,1320.90786694,0.00022078,2]
[310877604,1704761552377,630.04848623,0.00022308,2]
[310877605,1704761555009,184.65614565,0.00020164,2]
[310877606,1704761555043,5180.18495583,0.00022404,2]
[310877607,1704761555230,655.68,0.00021993,2]
[310877609,1704761561024,531.45138507,0.00022404,2]
[310877610,1704761561104,1000.0,0.00021284,2]
[310877611,1704761564094,536.79058537,0.00022078,2]
[310877612,1704761566053,2401.83951635,0.00022404,2]
[310877613,1704761566574,1890.54671534,0.00022404,2]
[310877614,1704761575045,5296.29841378,0.00022404,2]
[310877615,1704761579015,531.45138507,0.00022404,2]
[310877616,1704761584536,155.0,0.0002,2]
[310877617,1704761586559,632.50814326,0.00022404,2]
[310877618,1704761595016,530.16245427,0.00022404,2]
[310877622,1704761604400,155.0,0.0002,2]
[310877623,1704761622406,285.05979037,0.0002,2]
[310877627,1704761637369,228.84,0.00021979,2]
[310877628,1704761642450,150.0,0.00021979,2]
[310877631,1704761668039,219.12,0.0002198,2]
[310877634,1704761695622,4175.56,0.00021979,2]
[310877637,1704761740282,163.1,0.00022148,2]
[310877638,1704761740490,163.1,0.00022209,2]
[310877639,1704761740710,163.1,0.0002227,2]
[310877640,1704761740960,163.1,0.0002233,2]
[310877641,1704761741175,163.1,0.00022391,2]
[310877642,1704761741403,163.1,0.00022452,2]
[310877643,1704761763284,6105.61,0.0002195,2]
[310877644,1704761782794,157.2,0.0002217,2]
[310877645,1704761793512,215.34,0.0002195,2]
[310877646,1704761813696,224.23,0.00020032,2]
[310877647,1704761813947,224.23,0.00022296,2]
[310877650,1704761837873,250.0,0.00021949,2]
[310877651,1704761842337,200.0,0.00021949,2]
[310877652,1704761898468,421.07,0.00021954,2]
[310877653,1704761903716,200.0,0.00021954,2]
[310877654,1704761909968,200.0,0.00021954,2]
[310877656,1704761923418,1201.14620244,0.00022499,2]
[310877657,1704761935632,500.0,0.00021956,2]
[310877658,1704761936925,750.0,0.00021956,2]
[310877659,1704761938130,2569.69,0.00021956,2]
[310877660,1704761941079,156.61,0.00021956,2]
[310877661,1704761949314,23900.0,0.00021956,2]
[310877662,1704761974476,1032.21,0.00021956,2]
[310877663,1704761998208,475.45,0.00021956,2]
[310877664,1704762001745,170.84,0.00017565,2]
[310877667,1704762010347,3831.29,0.00021956,2]
[310877668,1704762024123,351.76,0.00022,2]
[310877669,1704762065718,150.0,0.00021955,2]
[310877670,1704762079777,608.12,0.00021955,2]